[Event "Indian Blitz Championship 2023"]
[Site "Nashik"]
[Date "2024.03.07"]
[Round "2.3"]
[White "Karthik Venkataraman"]
[Black "Gaurav Rajesh Zagade"]
[Result "1-0"]
[ECO "A24"]
[WhiteElo "2609"]
[BlackElo "2124"]
[Annotator "TA"]
[PlyCount "77"]
[EventDate "2024.03.07"]
[EventType "blitz"]
[EventCountry "IND"]
[SourceTitle "playchess.com"]
[Source "ChessBase"]
[SourceQuality "1"]
[TimeControl "180+2"]

{[%evp 21,77,-5,18,0,2,-6,16,-12,0,-5,11,-7,35,-49,-35,-40,-45,-55,-41,-45,29,0,0,0,0,0,0,0,19,-4,0,-25,122,55,47,42,112,41,181,189,186,181,179,180,243,237,258,258,384,268,337,266,333,266,437,404,848,827]} 1. d3 {[%emt 0:00:01]} Nf6 {[%emt 0:00:02]} 2. Nf3 {[%emt 0:00:01]} g6 {[%emt 0:00:01]} 3. g3 {[%emt 0:00:03]} Bg7 {[%emt 0:00:01]} 4. Bg2 {[%emt 0:00:01]} d6 {[%emt 0:00:02]} 5. O-O {[%emt 0:00:02]} O-O {[%emt 0:00:02]} 6. c4 {[%emt 0:00:01]} e5 {[%emt 0:00:01]} 7. Nc3 {[%emt 0:00:01]} Re8 {[%emt 0:00:04]} 8. Rb1 {[%emt 0:00:04]} a5 {[%emt 0:00:03]} 9. a3 {[%emt 0:00:03]} c6 {[%emt 0:00:01]} 10. b4 {[%emt 0:00:02]} axb4 {[%emt 0:00:03]} 11. axb4 {[%emt 0:00:00]} h6 {[%emt 0:00:09]} 12. e4 {[%emt 0:00:06]} d5 {[%emt 0:00:21]} 13. Qc2 {[%emt 0:00:27]} d4 {[%emt 0:00:22]} 14. Nd1 {[%emt 0:00:19] The position is equal.} b5 {[%emt 0:00:30]} 15. Nd2 {[%emt 0:00:07]} Nbd7 {[%emt 0:00:27]} 16. f4 {[%emt 0:00:12]} Ng4 {[%emt 0:00:07]} 17. Nf3 {[%emt 0:00:08]} ({Better is} 17. f5 $14) 17... exf4 {[%emt 0:00:08]} 18. gxf4 {[%emt 0:00:03]} bxc4 {[%emt 0:00:15]} 19. Qxc4 {[%emt 0:00:05]} Ba6 {[%emt 0:00:03]} 20. Qc2 {[%emt 0:00:02][%cal Oh2h3]} Qb6 {[%emt 0:00:13]} (20... Bb5 $15) 21. h3 {[%emt 0:00:39]} Ne3 {[%emt 0:00:02]} 22. Nxe3 {[%emt 0:00:01]} dxe3 {[%emt 0:00:01]} 23. Re1 {[%emt 0:00:01][%cal Bf1e1,Be1e2,Be2d2][%mdl 32]} e2+ {[%emt 0:00:09]} 24. Kh2 {[%emt 0:00:02]} Rab8 {[%emt 0:00:12]} 25. Rxe2 {[%emt 0:00:04]} c5 {[%emt 0:00:01]} 26. Be3 {[%emt 0:00:10]} Qc7 {[%emt 0:00:09]} (26... Qb5 $11 {keeps the balance.} 27. Rd2 Rec8 (27... cxb4 28. Nd4 $11)) 27. bxc5 {[%emt 0:00:07]} (27. Bxc5 $2 Qxf4+ 28. Kh1 Rec8 $17) (27. Ree1 $16) 27... Rxb1 $14 {[%emt 0:00:02]} 28. Qxb1 {[%emt 0:00:01]} Nxc5 {[%emt 0:00:02]} (28... Rxe4 $1 $14 29. c6 Rxe3 (29... Qxc6 $2 {too greedy.} 30. Ng1 $18) 30. Rxe3 Qxf4+ (30... Qxc6 31. Re8+ Nf8 32. Qb8 $16) 31. Kh1 Qxe3 32. cxd7 Bf6) 29. Qc1 {[%emt 0:00:17]} (29. Rc2 $16 Qb7 30. Qxb7 Nxb7 31. Ne1) 29... Bxd3 {[%emt 0:00:03] Loses the game.} (29... Ne6 $1 $14) 30. Rd2 $36 {[%emt 0:00:01][%mdl 2048] Black is under strong pressure.} Bxe4 {[%emt 0:00:12]} 31. Qxc5 {[%emt 0:00:01]} Qxc5 {[%emt 0:00:03]} 32. Bxc5 {[%emt 0:00:01]} Bxf3 {[%emt 0:00:02]} (32... Bb1 {is a better defense.} 33. Bd6 Re6) 33. Bxf3 {[%emt 0:00:01]} Rc8 {[%emt 0:00:03]} 34. Bb6 {[%emt 0:00:05]} Rc3 {[%emt 0:00:02]} (34... Bf6 {keeps fighting.} 35. Rd7 Rc2+ 36. Kh1 Kf8) 35. Kg2 {[%emt 0:00:03] Threatens to win with Rd8+.} Rc4 {[%emt 0:00:04]} 36. Be3 {[%emt 0:00:06]} Rc3 {[%emt 0:00:01]} 37. Bf2 {[%emt 0:00:12] Hoping for Rd8+.} h5 $2 {[%emt 0:00:02] [#]} (37... Rc7 38. Rd8+ Kh7) 38. Rd7 {[%emt 0:00:02]} Bh6 {[%emt 0:00:09]} (38... Rc2 $142 39. Bd5 Bd4 40. Bxf7+ Kf8 41. Rxd4 Kxf7) 39. Bd5 {[%emt 0:00:06] Weighted Error Value: White=0.28 (precise) /Black=0.48.  Mistake:       	White=3     	Black=8      Inaccurate:     	White=3     	Black=1      OK:         	White=7     	Black=3      Best:        	White=2     	Black=2} 1-0

[Event "Indian Blitz Championship 2023"]
[Site "Nashik"]
[Date "2024.03.07"]
[Round "2.4"]
[White "Nagare Akhilesh"]
[Black "Ravi, Teja S."]
[Result "0-1"]
[ECO "A12"]
[WhiteElo "2082"]
[BlackElo "2437"]
[Annotator "TA"]
[PlyCount "108"]
[EventDate "2024.03.07"]
[EventType "blitz"]
[EventCountry "IND"]
[SourceTitle "playchess.com"]
[Source "ChessBase"]
[SourceQuality "1"]
[TimeControl "180+2"]

{[%evp 19,108,21,19,-24,4,-13,-3,0,-4,-28,-26,-29,18,-14,0,-97,-102,-100,-96,-106,-107,-97,-104,-124,-109,-114,-112,-150,-138,-146,-142,-164,-143,-166,-121,-247,-234,-278,-272,-293,-274,-283,-293,-305,-311,-362,-362,-433,-391,-438,-369,-447,-458,-477,-463,-468,-463,-511,-504,-1357,-1096,-978,-848,-784,-718,-797,-756,-731,-726,-724,-736,-988,-873,-883,-595,-508,0,-994,-1002,-928,-885,-29986,-29987,-29987,-29988,-29982,-1008,-29973,-29974,-29995,-29992]} 1. c4 {[%emt 0:00:02]} c6 {[%emt 0:00:01]} 2. Nf3 {[%emt 0:00:01]} d5 {[%emt 0:00:00]} 3. b3 {[%emt 0:00:01]} Nf6 {[%emt 0:00:01]} 4. Bb2 {[%emt 0:00:01]} Bg4 {[%emt 0:00:01]} 5. d3 {[%emt 0:00:03]} Nbd7 {[%emt 0:00:05]} 6. Nbd2 {[%emt 0:00:02]} e6 {[%emt 0:00:02]} 7. g3 {[%emt 0:00:01]} Bc5 {[%emt 0:00:04]} 8. Bg2 {[%emt 0:00:02]} O-O {[%emt 0:00:02]} 9. O-O {[%emt 0:00:05]} Qe7 {[%emt 0:00:00]} 10. a3 {[%emt 0:00:01]} a5 {[%emt 0:00:01]} 11. Ra2 {[%emt 0:00:08]} Rfc8 {[%emt 0:00:27]} 12. Qa1 {[%emt 0:00:02]} Qd8 {[%emt 0:00:03]} 13. Rb1 {[%emt 0:00:29] The position is equal.} h6 {[%emt 0:00:06]} 14. Bd4 {[%emt 0:00:04]} Bxd4 {[%emt 0:00:09]} 15. Qxd4 {[%emt 0:02:30]} Qb6 {[%emt 0:00:12]} (15... Qc7 $142) 16. Qc3 {[%emt 0:00:00]} (16. Qxb6 {simplifies} Nxb6 17. h3 Bxf3 18. Bxf3 Nbd7 19. Rc2) 16... Bf5 {[%emt 0:00:11]} 17. Ne5 {[%emt 0:00:00]} (17. Raa1 $11) 17... Nxe5 $17 {[%emt 0:00:02] Black keeps a firm grip on the game.} 18. Qxe5 {[%emt 0:00:00] [#]} Qxf2+ $1 {[%emt 0:00:02]} 19. Kxf2 {[%emt 0:00:00]} Ng4+ {[%emt 0:00:00]} 20. Ke1 {[%emt 0:00:00]} Nxe5 {[%emt 0:00:01][%cal Bg4e5,Be5g6,Bg6f4][%mdl 32]} 21. h3 {[%emt 0:00:00]} Rc7 {[%emt 0:00:12]} 22. g4 {[%emt 0:00:00]} Bh7 {[%emt 0:00:03]} 23. Rba1 {[%emt 0:00:00]} Ng6 {[%emt 0:00:10] Black has more active pieces.} 24. b4 {[%emt 0:00:00]} Nf4 {[%emt 0:00:02]} 25. Kf2 {[%emt 0:00:00]} e5 {[%emt 0:00:18]} 26. Bf1 {[%emt 0:00:00]} Re7 {[%emt 0:00:09]} 27. e3 {[%emt 0:00:00]} (27. bxa5 $17 {was necessary.} Rxa5 28. Rb2) 27... Nxd3+ $19 {[%emt 0:00:01]} 28. Bxd3 {[%emt 0:00:00]} Bxd3 {[%emt 0:00:01]} 29. cxd5 {[%emt 0:00:00]} cxd5 {[%emt 0:00:01]} 30. bxa5 {[%emt 0:00:00]} Rxa5 {[%emt 0:00:01]} 31. Rb2 {[%emt 0:00:01]} Rc7 {[%emt 0:00:06]} 32. Ke1 {[%emt 0:00:06]} b5 {[%emt 0:00:04]} 33. Nb3 {[%emt 0:00:11]} Ra8 {[%emt 0:00:04]} 34. Kd2 {[%emt 0:00:02]} Be4 {[%emt 0:00:02]} 35. Nc1 {[%emt 0:00:02]} Rac8 {[%emt 0:00:05]} 36. Ne2 {[%emt 0:00:08]} Rc2+ {[%emt 0:00:02]} 37. Rxc2 {[%emt 0:00:01]} Rxc2+ {[%emt 0:00:00][%mdl 4096] Endgame. KRB-KRN} 38. Ke1 {[%emt 0:00:01]} Bd3 {[%emt 0:00:10]} 39. Ng1 {[%emt 0:00:08]} (39. Nc1 $142 Bc4 40. g5) 39... e4 {[%emt 0:00:04] [#] ...Rg2 is the strong threat.} 40. h4 {[%emt 0:00:05]} Rh2 {[%emt 0:00:03] And now ...d4 would win.} 41. Rc1 {[%emt 0:00:03]} Rxh4 {[%emt 0:00:03][%cal Oh4h2] White must now prevent ...Rh2!} 42. Rc8+ {[%emt 0:00:01]} Kh7 {[%emt 0:00:01]} 43. Rd8 {[%emt 0:00:04]} Rxg4 {[%emt 0:00:06]} 44. Kf2 {[%emt 0:00:00]} Bc4 {[%emt 0:00:06]} 45. Rd7 {[%emt 0:00:01]} f5 {[%emt 0:00:04] aiming for ...f4.} 46. Nh3 {[%emt 0:00:01]} Rh4 {[%emt 0:00:15]} 47. Kg3 {[%emt 0:00:04]} Rg4+ {[%emt 0:00:01]} 48. Kf2 $1 {[%emt 0:00:01]} h5 {[%emt 0:00:02]} 49. Nf4 {[%emt 0:00:04]} h4 {[%emt 0:00:01]} 50. Ne6 {[%emt 0:00:03]} h3 {[%emt 0:00:04]} 51. Nf8+ {[%emt 0:00:02]} Kg8 {[%emt 0:00:01]} 52. Rd8 {[%emt 0:00:01]} h2 {[%emt 0:00:05]} (52... Rg2+ $142 53. Ke1 h2 54. Ng6+ Kh7 55. Rh8+ Kxg6 56. Kd1 Be2+ 57. Kc2 Bh5+ 58. Kc3 h1=Q (58... h1=B $2 59. Rd8 $19) 59. Re8 Qc1+ 60. Kb4 Qc7 (60... Qxe3 {gets mated.} 61. Re6+ Kf7 62. Rc6 Rb2+ 63. Ka5 Qa7+ 64. Ra6 Qc7+ 65. Rb6 Ra2 66. Ka6 Rxa3+ 67. Kxb5 Qc4#) (60... Rb2+ 61. Ka5 Qc7+ 62. Ka6 Be2 63. Re6+ Kg5 64. Rb6 b4+ 65. Rb5 Ra2 66. a4 Rxa4#) 61. Re6+ Kg5 (61... Kf7 62. Rc6 Qxc6 63. Ka5 Rg6 64. Kb4 Qc4+ 65. Ka5 Qa4#) 62. Rc6 Qxc6 63. Ka5 Qd6 64. a4 Rb2 65. axb5 Ra2#) 53. Ne6+ {[%emt 0:00:00]} Kf7 {[%emt 0:00:02]} 54. Nf4 {[%emt 0:00:01]} Rxf4+ {[%emt 0:00:02] Weighted Error Value: White=0.48/Black=0.24 (precise) .  Mistake:       	White=3     	Black=1      Inaccurate:     	White=2     	Black=1      OK:         	White=5     	Black=9      Best:        	White=1     	Black=3      Strong:       	White=1     	---        Brilliant:      	---       	Black=1} 0-1

[Event "Indian Blitz Championship 2023"]
[Site "Nashik"]
[Date "2024.03.07"]
[Round "2.5"]
[White "Aronyak Ghosh"]
[Black "Lad Mandar Pradip"]
[Result "1/2-1/2"]
[ECO "D02"]
[WhiteElo "2517"]
[BlackElo "2258"]
[Annotator "RC"]
[PlyCount "132"]
[EventDate "2024.03.07"]
[EventType "blitz"]
[EventCountry "IND"]
[SourceTitle "playchess.com"]
[Source "ChessBase"]
[SourceQuality "1"]
[TimeControl "180+2"]

1. Nf3 {[%emt 0:00:02]} d5 {[%emt 0:00:01]} 2. g3 {[%emt 0:00:03]} Nc6 {[%emt 0:03:05]} 3. d4 {[%emt 0:00:03]} Bf5 {[%emt 0:00:00]} 4. Bg2 {[%emt 0:00:06]} e6 {[%emt 0:00:00]} 5. O-O {[%emt 0:00:05]} Nb4 {[%emt 0:00:00]} 6. Na3 {[%emt 0:00:09]} Nf6 {[%emt 0:00:00]} 7. Ne5 {[%emt 0:00:15]} Be7 {[%emt 0:00:00]} 8. c3 {[%emt 0:00:05]} Nc6 {[%emt 0:00:00]} 9. Qa4 {[%emt 0:00:08]} Bd6 {[%emt 0:00:00]} 10. Nxc6 {[%emt 0:00:39]} Qd7 {[%emt 0:00:00]} 11. Nb5 {[%emt 0:00:15]} bxc6 {[%emt 0:00:00]} 12. Nxd6+ {[%emt 0:00:02]} cxd6 {[%emt 0:00:00]} 13. Bf4 {[%emt 0:00:02]} O-O {[%emt 0:00:00]} 14. Rfc1 {[%emt 0:00:02]} Rfc8 {[%emt 0:00:08]} 15. c4 {[%emt 0:00:06]} Be4 {[%emt 0:00:06]} 16. f3 {[%emt 0:00:18]} Bg6 {[%emt 0:00:01]} 17. Qa3 {[%emt 0:00:02]} dxc4 {[%emt 0:00:05]} 18. Qxd6 {[%emt 0:00:05]} Qb7 {[%emt 0:00:01]} 19. Qa3 {[%emt 0:00:07]} Nd5 {[%emt 0:00:02]} 20. Bd6 {[%emt 0:00:02]} Nb6 {[%emt 0:00:03]} 21. e4 {[%emt 0:00:04]} Rd8 {[%emt 0:00:02]} 22. Bc5 {[%emt 0:00:02]} h6 {[%emt 0:00:01]} 23. Bf1 {[%emt 0:00:07]} Rd7 {[%emt 0:00:03]} 24. Bxc4 {[%emt 0:00:04]} Nxc4 {[%emt 0:00:01]} 25. Rxc4 {[%emt 0:00:01]} a5 {[%emt 0:00:01]} 26. Rac1 {[%emt 0:00:08]} f5 {[%emt 0:00:03]} 27. e5 {[%emt 0:00:03]} f4 {[%emt 0:00:01]} 28. g4 {[%emt 0:00:06]} Qb5 {[%emt 0:00:04]} 29. Qb3 {[%emt 0:00:05]} Rb8 {[%emt 0:00:02]} 30. Qxb5 {[%emt 0:00:03]} cxb5 {[%emt 0:00:02]} 31. R4c3 {[%emt 0:00:01]} b4 {[%emt 0:00:01]} 32. Rc4 {[%emt 0:00:04]} Bd3 {[%emt 0:00:02]} 33. Bd6 {[%emt 0:00:01]} Bxc4 {[%emt 0:00:02]} 34. Rxc4 {[%emt 0:00:05]} Rb5 {[%emt 0:00:01]} 35. Kf2 {[%emt 0:00:06]} Rd5 {[%emt 0:00:03]} 36. Ke2 {[%emt 0:00:02]} R7xd6 {[%emt 0:00:05]} 37. exd6 {[%emt 0:00:01]} Rxd6 {[%emt 0:00:01]} 38. Kd3 {[%emt 0:00:09]} e5 {[%emt 0:00:01]} 39. Ke4 {[%emt 0:00:00]} exd4 {[%emt 0:00:01]} 40. Rxd4 {[%emt 0:00:01]} Re6+ {[%emt 0:00:00]} 41. Kxf4 {[%emt 0:00:03]} Re2 {[%emt 0:00:01]} 42. a3 {[%emt 0:00:15]} Rxb2 {[%emt 0:00:04]} 43. Rd8+ {[%emt 0:00:07]} Kh7 {[%emt 0:00:02]} 44. axb4 {[%emt 0:00:01]} axb4 {[%emt 0:00:14]} 45. h4 {[%emt 0:00:01]} Rb1 {[%emt 0:00:00]} 46. Rb8 {[%emt 0:00:01]} b3 {[%emt 0:00:00]} 47. Kf5 {[%emt 0:00:04]} b2 {[%emt 0:00:00]} 48. f4 {[%emt 0:00:05]} Rc1 {[%emt 0:00:04]} 49. Rxb2 {[%emt 0:00:02]} Rc5+ {[%emt 0:00:01]} 50. Ke4 {[%emt 0:00:01]} Rc4+ {[%emt 0:00:01]} 51. Ke5 {[%emt 0:00:01]} Rc5+ {[%emt 0:00:03]} 52. Kd4 {[%emt 0:00:01]} Ra5 {[%emt 0:00:01]} 53. Rc2 {[%emt 0:00:01]} Ra3 {[%emt 0:00:01]} 54. Ke4 {[%emt 0:00:05]} Rg3 {[%emt 0:00:05]} 55. g5 {[%emt 0:00:04]} hxg5 {[%emt 0:00:01]} 56. hxg5 {[%emt 0:00:01]} Kg6 {[%emt 0:00:01]} 57. Rc6+ {[%emt 0:00:02]} Kh5 {[%emt 0:00:04]} 58. Kf5 {[%emt 0:00:02]} Ra3 {[%emt 0:00:02]} 59. Re6 {[%emt 0:00:01]} Ra5+ {[%emt 0:00:01]} 60. Re5 {[%emt 0:00:01]} Ra6 {[%emt 0:00:01]} 61. Rd5 {[%emt 0:00:02]} Rb6 {[%emt 0:00:03]} 62. Rd7 {[%emt 0:00:08]} g6+ {[%emt 0:00:02]} 63. Ke5 {[%emt 0:00:01]} Kg4 {[%emt 0:00:01]} 64. Rf7 {[%emt 0:00:06]} Rb5+ {[%emt 0:00:04]} 65. Kf6 {[%emt 0:00:01]} Kxf4 {[%emt 0:00:01]} 66. Kxg6+ {[%emt 0:00:01]} Kg4 {[%emt 0:00:00]} 1/2-1/2

[Event "Indian Blitz Championship 2023"]
[Site "Nashik"]
[Date "2024.03.07"]
[Round "2.6"]
[White "Swati Ghate"]
[Black "Raja Rithvik R"]
[Result "0-1"]
[ECO "B92"]
[WhiteElo "2012"]
[BlackElo "2532"]
[Annotator "TA"]
[PlyCount "84"]
[EventDate "2024.03.07"]
[EventType "blitz"]
[EventCountry "IND"]
[SourceTitle "playchess.com"]
[Source "ChessBase"]
[SourceQuality "1"]
[TimeControl "180+2"]

{[%evp 14,84,0,0,1,0,0,-16,0,0,0,-45,-6,-28,-28,-24,-25,-33,0,0,0,0,-7,-64,-59,-96,-40,-177,-167,-174,-160,-196,-182,-172,-170,-164,-140,-252,-228,-251,-250,-250,-250,-460,-402,-388,-385,-566,-394,-667,-678,-623,-628,-642,-629,-725,-743,-1004,-923,-1091,-1079,-1036,-1014,-6193,-1227,-6234,-6277,-5409,-5421,-4930,-4930,-29993,-29994]} 1. e4 {[%emt 0:00:01]} c5 {[%emt 0:00:01]} 2. Nf3 {[%emt 0:00:02]} d6 {[%emt 0:00:01]} 3. d4 {[%emt 0:00:01]} cxd4 {[%emt 0:00:01]} 4. Nxd4 {[%emt 0:00:01]} Nf6 {[%emt 0:00:01]} 5. Nc3 {[%emt 0:00:01]} a6 {[%emt 0:00:01]} 6. Be2 {[%emt 0:00:03]} e5 {[%emt 0:00:02]} 7. Nf3 {[%emt 0:00:02]} Be7 {[%emt 0:00:11]} 8. Bg5 {[%emt 0:00:03]} Be6 {[%emt 0:00:02]} 9. a4 {[%emt 0:00:05]} Nbd7 {[%emt 0:00:04]} 10. Nd2 {[%emt 0:00:10]} Rc8 {[%emt 0:00:06] Die Stellung ist ausgeglichen.} 11. Bf3 {[%emt 0:00:36]} O-O {[%emt 0:00:11][%cal Ob7b5]} 12. Nf1 {[%emt 0:00:11]} Qa5 {[%emt 0:00:10]} 13. Ne3 {[%emt 0:00:30]} (13. Bd2 $5) 13... Rxc3 {[%emt 0:00:16]} 14. bxc3 {[%emt 0:00:02]} Qxc3+ {[%emt 0:00:01]} 15. Kf1 {[%emt 0:00:01]} Nc5 {[%emt 0:00:08][%cal Oh7h6]} 16. Bxf6 {[%emt 0:00:44]} Bxf6 {[%emt 0:00:01]} 17. h4 {[%emt 0:00:05]} Qb4 {[%emt 0:00:51]} 18. Nd5 {[%emt 0:00:29]} (18. Rb1 $11 Qxa4 19. Qxd6) 18... Qc4+ $15 {[%emt 0:00:29]} 19. Qe2 {[%emt 0:00:04]} Qxe2+ {[%emt 0:00:25]} (19... Bxd5 $17 20. exd5 Qd4) 20. Kxe2 {[%emt 0:00:03] Verliert die Partie.} (20. Bxe2 $15 Nxe4 21. Nxf6+ gxf6 22. Bd3) 20... Bxd5 $19 {[%emt 0:00:01]} 21. exd5 {[%emt 0:00:01]} e4 {[%emt 0:00:01]} 22. Bg4 {[%emt 0:00:05]} Bxa1 {[%emt 0:00:01]} 23. Rxa1 {[%emt 0:00:02][%mdl 4096] Endspiel. KRB-KRN} f5 {[%emt 0:00:01]} 24. Bh3 {[%emt 0:00:03]} g6 {[%emt 0:00:03]} 25. g3 {[%emt 0:00:01]} (25. a5 $17) 25... Kg7 {[%emt 0:00:01]} 26. a5 {[%emt 0:00:04]} Kf6 {[%emt 0:00:02]} 27. Ke3 {[%emt 0:00:01]} Ke5 {[%emt 0:00:02]} 28. c4 $2 {[%emt 0:00:02]} (28. f4+ {war einen Versuch wert.} exf3 29. Kxf3) 28... f4+ {[%emt 0:00:03]} 29. gxf4+ {[%emt 0:00:05]} Rxf4 {[%emt 0:00:02] [#] Und ...Rf3+ würde nun gewinnen.} 30. Bc8 {[%emt 0:00:03]} (30. Bg2 {war nötig.}) 30... Rxh4 {[%emt 0:00:14] Zielt auf ...Rf4 ab.} 31. Rb1 $2 {[%emt 0:00:02]} (31. Rg1) 31... Rf4 {[%emt 0:00:05]} 32. Bxb7 {[%emt 0:00:03]} Rf3+ {[%emt 0:00:01]} 33. Ke2 {[%emt 0:00:01]} Ra3 {[%emt 0:00:01]} 34. Bc6 {[%emt 0:00:04]} Rxa5 {[%emt 0:00:04]} 35. Rb8 {[%emt 0:00:01]} Kd4 {[%emt 0:00:05]} 36. Rd8 {[%emt 0:00:01]} Ra2+ {[%emt 0:00:01]} 37. Kf1 {[%emt 0:00:03]} Nd3 {[%emt 0:00:05]} (37... Kxc4 38. Rxd6 Nd3 39. Rf6 $11) 38. Rxd6 {[%emt 0:00:03]} Rxf2+ {[%emt 0:00:02]} 39. Kg1 {[%emt 0:00:01]} e3 {[%emt 0:00:09]} 40. Re6 {[%emt 0:00:01] Verhindert Ne5} e2 {[%emt 0:00:06] [#] ( -> ...Rf1+)} ({Weniger gut wäre} 40... Kxc4 41. Rxe3 Rd2 42. Re7 $17) 41. d6 {[%emt 0:00:01]} Rf1+ {[%emt 0:00:03]} ({Schwächer ist} 41... e1=R+ 42. Rxe1 Nxe1 43. Kxf2 Nd3+ 44. Ke2 $17) 42. Kg2 {[%emt 0:00:02]} Nf4+ {[%emt 0:00:02] Gewichteter Fehlerwert: Weiß=0.73/Schwarz=0.15 (sehr präzise) .  Fehler:       	Weiß=6     	Schwarz=1     Ungenau:       	Weiß=2     	Schwarz=3     OK:         	Weiß=6     	Schwarz=8     Bester:       	---       	Schwarz=3} 0-1

[Event "Indian Blitz Championship 2023"]
[Site "Nashik"]
[Date "2024.03.07"]
[Round "2.7"]
[White "Laxman, R.R."]
[Black "Apoorv Kamble"]
[Result "0-1"]
[ECO "D11"]
[WhiteElo "2331"]
[BlackElo "2369"]
[Annotator "TA"]
[PlyCount "95"]
[EventDate "2024.03.07"]
[EventType "blitz"]
[EventCountry "IND"]
[SourceTitle "playchess.com"]
[Source "ChessBase"]
[SourceQuality "1"]
[TimeControl "180+2"]

{[%evp 14,95,33,26,45,45,76,83,108,106,112,81,83,71,82,78,159,130,169,88,120,95,97,79,90,0,84,0,91,66,106,68,69,66,89,85,81,50,54,26,56,57,109,16,54,48,79,47,47,51,45,40,101,116,93,101,100,97,93,77,89,87,80,50,73,0,5,0,107,0,0,-145,77,77,77,0,0,0,52,0,0,-320,0,-122]} 1. d4 {[%emt 0:00:02]} Nf6 {[%emt 0:00:01]} 2. Nf3 {[%emt 0:00:02]} d5 {[%emt 0:00:05]} 3. c4 {[%emt 0:00:01]} c6 {[%emt 0:00:02]} 4. e3 {[%emt 0:00:02]} a6 {[%emt 0:00:01]} 5. Nbd2 {[%emt 0:00:12]} g6 {[%emt 0:00:13]} 6. Be2 {[%emt 0:00:05]} Bg7 {[%emt 0:00:01]} 7. O-O {[%emt 0:00:01]} O-O {[%emt 0:00:01]} 8. b4 {[%emt 0:00:02]} Nbd7 {[%emt 0:00:17]} 9. Bb2 {[%emt 0:00:08]} b5 {[%emt 0:00:19]} 10. c5 {[%emt 0:00:15]} Qc7 {[%emt 0:00:17] White is better.} 11. a4 {[%emt 0:00:03]} Bb7 {[%emt 0:00:01]} 12. Nb3 {[%emt 0:00:03]} Ne4 {[%emt 0:00:10]} 13. Qc2 {[%emt 0:00:14]} f5 {[%emt 0:00:03]} 14. Bd3 {[%emt 0:00:10]} h6 {[%emt 0:00:35]} (14... e6 $142) 15. Na5 {[%emt 0:00:12]} Rae8 {[%emt 0:00:31]} 16. Rfc1 {[%emt 0:00:15]} (16. Nh4 $18) 16... Bc8 {[%emt 0:00:17]} 17. axb5 {[%emt 0:00:13]} axb5 {[%emt 0:00:00]} 18. Nb3 {[%emt 0:00:07]} Bb7 {[%emt 0:00:01]} 19. Na5 {[%emt 0:00:17]} (19. Be2 $16) 19... Ba8 {[%emt 0:00:27]} (19... Bc8 $11) 20. Nb3 {[%emt 0:00:03]} Bb7 $1 {[%emt 0:00:00]} 21. g3 {[%emt 0:00:11]} Ra8 {[%emt 0:00:01]} 22. Rxa8 {[%emt 0:00:02]} Rxa8 {[%emt 0:00:01]} 23. Nh4 {[%emt 0:00:07]} Kh7 {[%emt 0:00:04]} 24. f3 {[%emt 0:00:05][%cal Bf2f3,Bf3f4][%mdl 32]} Ng5 {[%emt 0:00:10]} (24... Nxg3 $2 25. Qg2 $18 (25. hxg3 Qxg3+ 26. Ng2 Bc8 $18)) 25. f4 {[%emt 0:00:06]} Ne4 {[%emt 0:00:01]} 26. g4 {[%emt 0:00:02]} e6 {[%emt 0:00:00]} 27. Qg2 {[%emt 0:00:15] Black must now prevent gxf5.} Rg8 {[%emt 0:00:09]} (27... Ndf6 $14) 28. Kh1 {[%emt 0:00:03]} (28. gxf5 $16 gxf5 29. Qg6+ Kh8 30. Qf7 (30. Qxe6 $2 Nf8 $19)) 28... Bf6 {[%emt 0:00:01]} 29. Nf3 {[%emt 0:00:01]} Qd8 {[%emt 0:00:01]} 30. h3 {[%emt 0:00:05]} Be7 {[%emt 0:00:03]} 31. Na5 {[%emt 0:00:03]} Ba8 {[%emt 0:00:00]} 32. Rg1 {[%emt 0:00:02]} Rg7 {[%emt 0:00:05]} (32... Qe8 $14) 33. gxf5 $16 {[%emt 0:00:03]} exf5 {[%emt 0:00:01]} 34. Ne5 {[%emt 0:00:08]} Nxe5 {[%emt 0:00:01]} 35. dxe5 {[%emt 0:00:01]} Rg8 {[%emt 0:00:01]} (35... Bxc5 $2 36. bxc5 Qg8 37. Nb3 $18) 36. Bd4 {[%emt 0:00:03]} Bh4 {[%emt 0:00:02]} 37. Bxe4 {[%emt 0:00:03]} dxe4 {[%emt 0:00:02]} 38. Qa2 {[%emt 0:00:02]} Qe7 {[%emt 0:00:03]} 39. Nb3 {[%emt 0:00:09]} (39. Bc3 $16) 39... Bb7 $11 {[%emt 0:00:01]} 40. Na5 {[%emt 0:00:04]} (40. Bc3 $11) 40... Ba8 $1 $16 {[%emt 0:00:05]} 41. Nb3 {[%emt 0:00:05]} (41. e6 $16) 41... Bb7 $11 {[%emt 0:00:00]} 42. Rd1 {[%emt 0:00:02]} (42. Bc3 $11 {keeps the balance.}) 42... Rd8 $2 {[%emt 0:00:02] [#]} (42... Bc8 $17 {keeps the pressure on.} 43. Nc1 g5 (43... Be6 $2 44. Qd2 $19)) 43. Na5 $1 $16 {[%emt 0:00:04]} Ba8 {[%emt 0:00:01]} 44. Rd2 {[%emt 0:00:02]} (44. Rf1 $16) 44... Be1 $11 {[%emt 0:00:02]} 45. Rb2 {[%emt 0:00:09]} Rd5 {[%emt 0:00:02]} (45... g5 $11 46. Rb1 Bg3) 46. Qb3 {[%emt 0:00:05]} (46. Qa1 $14 Rxd4 (46... Qh4 47. Rg2 $14) 47. Qxe1 (47. exd4 Bc3 $11)) 46... Qh4 {[%emt 0:00:04][%cal Oe1f2] ...Bf2! would now be deadly.} 47. Rh2 {[%emt 0:00:02][%mdl 8192] [#] White is weak on the light squares} (47. Rg2 $11 {and White is okay.}) 47... Qg3 $2 {[%emt 0:00:01]} ({Better is} 47... Bd2 $1 $19 {Hoping for ...Qe1+.} 48. Qb1 Rxd4 49. exd4 Bxf4) 48. Qc2 {[%emt 0:00:07] Never resign too early!   Weighted Error Value: White=0.42/Black=0.35.  Loses game:     	White=1     	---        Missed win:     	---       	Black=1      Mistake:       	White=10    	Black=6      Inaccurate:     	White=4     	Black=6      OK:         	White=13    	Black=9      Best:        	---       	Black=3      Strong:       	White=1     	Black=2} (48. e6 $11 Qf3+ (48... Rxd4 49. exd4 Bc3 50. Qd1 $11) 49. Kg1 Rxd4 50. exd4) 0-1